fUSD/lending_fUSD_20260205
["ID","MTS","AMOUNT","RATE_DAILY","PERIOD"]
[404543428,1770270642364,-300.0,0.00017,2]
[404543429,1770270642372,-519.49,0.00017098,2]
[404543430,1770270642381,-174.61919141,0.00017099,2]
[404543431,1770270642390,-2000.0,0.00017099,2]
[404543432,1770270642399,-2000.0,0.00017099,2]
[404543433,1770270642408,-1449.10348087,0.00017099,2]
[404543434,1770270642417,-2000.0,0.00017099,2]
[404543435,1770270642427,-2000.0,0.00017099,2]
[404543436,1770270642436,-2000.0,0.00017099,2]
[404543438,1770270642445,-2000.0,0.00017099,2]
[404543439,1770270642454,-2000.0,0.00017099,2]
[404543440,1770270642463,-2000.0,0.00017099,2]
[404543441,1770270642471,-216.07161542,0.00017099,2]
[404543442,1770270642480,-2000.0,0.00017099,2]
[404543443,1770270642489,-2000.0,0.00017099,2]
[404543444,1770270642498,-2000.0,0.00017099,2]
[404543445,1770270642507,-578.20924308,0.00017099,2]
[404543446,1770270642515,-1508.30623238,0.00017099,2]
[404543447,1770270642524,-743.50770149,0.00017099,2]
[404543448,1770270642534,-322.6107,0.00017099,2]
[404543449,1770270642543,-209.40437684,0.00017099,2]
[404543450,1770270642552,-558.95,0.00017126,2]
[404543451,1770270642562,-217.15233878,0.00017154,2]
[404543452,1770270642571,-225.18697532,0.00017209,2]
[404543453,1770270642580,-14960.57270457,0.00017243,2]
[404543454,1770270642589,-1000.0,0.0001726,2]
[404543455,1770270642600,-233.51889341,0.00017264,2]
[404543456,1770270642613,-151.0,0.00017316,3]
[404543457,1770270642622,-152.05768541,0.00017317,2]
[404543458,1770270642631,-242.15909246,0.00017319,2]
[404543459,1770270642640,-200.0,0.00017337,2]
[404543460,1770270642650,-200.0,0.00017343,2]
[404543461,1770270642659,-251.11897888,0.00017374,2]
[404543462,1770270642668,-558.95,0.000174,2]
[404543463,1770270642679,-260.4103811,0.00017429,2]
[404543464,1770270642688,-270.0455652,0.00017484,2]
[404543465,1770270642697,-1000.0,0.00017534,2]
[404543466,1770270642706,-280.03725112,0.00017539,2]
[404543467,1770270642715,-290.39862941,0.00017594,2]
[404543468,1770270642724,-181.08010149,0.00017647,2]
[404543469,1770270642734,-209.98794847,0.00017647,2]
[404543470,1770270642743,-301.1433787,0.00017649,2]
[404543471,1770270642752,-558.95,0.00017674,2]
[404543472,1770270642761,-748.0,0.00017683,2]
[404543473,1770270642770,-150.0,0.00017725,2]
[404543474,1770270642779,-150.0,0.00017733,2]
[404543475,1770270642789,-150.0,0.00017738,2]
[404543476,1770270642798,-1000.0,0.00017741,2]
[404543477,1770270642807,-1000.0,0.00017747,2]
[404543478,1770270642816,-150.0,0.00017753,2]
[404543479,1770270642826,-150.0,0.00017758,2]
[404543480,1770270642835,-150.0,0.00017767,2]
[404543481,1770270642843,-1000.0,0.00017769,2]
[404543482,1770270642854,-1000.0,0.00017774,2]
[404543483,1770270642863,-1000.0,0.00017783,2]
[404543484,1770270642872,-173.45848611,0.00017796,2]
[404543485,1770270642880,-150.0,0.00017802,2]
[404543486,1770270642891,-1000.0,0.00017808,2]
[404543487,1770270642901,-150.0,0.00017815,2]
[404543488,1770270642911,-1000.0,0.00017825,2]
[404543489,1770270642922,-1000.0,0.00017825,2]
[404543490,1770270642932,-1000.0,0.00017825,2]
[404543491,1770270642942,-1000.0,0.00017825,2]
[404543492,1770270642953,-1000.0,0.00017825,2]
[404543493,1770270642962,-1000.0,0.00017825,2]
[404543494,1770270642972,-1000.0,0.00017825,2]
[404543495,1770270642981,-1000.0,0.00017825,2]
[404543496,1770270642990,-1000.0,0.00017825,2]
[404543497,1770270643000,-506.851,0.00017825,2]
[404543498,1770270643010,-1000.0,0.00017827,2]
[404543499,1770270643020,-1000.0,0.00017828,2]
[404543500,1770270643031,-1000.0,0.00017828,2]
[404543501,1770270643040,-1000.0,0.00017845,2]
[404543502,1770270643050,-1000.0,0.00017848,2]
[404543503,1770270643059,-150.0,0.00017849,2]
[404543504,1770270643071,-1000.0,0.00017853,2]
[404543505,1770270643082,-500.0,0.00017856,2]
[404543506,1770270643091,-500.0,0.00017856,2]
[404543507,1770270643101,-500.0,0.00017856,2]
[404543508,1770270643111,-207.76603134,0.00017865,2]
[404543509,1770270643120,-1000.0,0.0001789,2]
[404543510,1770270643130,-150.0,0.00017896,2]
[404543511,1770270643139,-519.49,0.00017899,2]
[404543512,1770270643148,-25000.0,0.000179,3]
[404543513,1770270643158,-1000.0,0.000179,2]
[404543514,1770270643167,-175.52213451,0.000179,2]
[404543515,1770270643176,-165.88513622,0.000179,2]
[404543516,1770270643185,-14960.57270457,0.000179,2]
[404543517,1770270643194,-6440.65816456,0.000179,3]
[404543518,1770270643203,-160.0,0.000179,3]
[404543519,1770270643212,-4730.14891558,0.000179,2]
[404543520,1770270643222,-13633.0,0.000179,2]
[404543521,1770270643231,-200.0,0.00017902,2]
[404543522,1770270643241,-1000.0,0.00017905,2]
[404543523,1770270643250,-1000.0,0.00017906,2]
[404543524,1770270643418,-501.0,0.00017918,2]
[404543525,1770270643429,-152.05768541,0.00017936,2]
[404543526,1770270643438,-1000.0,0.00017942,2]
[404543527,1770270643448,-559.11715052,0.00017948,2]
[404543528,1770270643457,-1000.0,0.00017948,2]
[404543529,1770270643467,-1972.22576583,0.00017948,2]
[404543530,1770270643476,-519.49,0.00017951,2]
[404543531,1770270643486,-1000.0,0.00017958,2]
[404543532,1770270643496,-500.0,0.00017973,2]
[404543533,1770270643505,-500.0,0.00017973,2]
[404543534,1770270643514,-500.0,0.00017973,2]
[404543535,1770270643523,-500.0,0.00017973,2]
[404543536,1770270643532,-500.0,0.00017973,2]
[404543537,1770270643542,-561.5530591,0.00017973,2]
[404543539,1770270643550,-500.0,0.00017973,2]
[404543540,1770270643560,-500.0,0.00017973,2]
[404543541,1770270643569,-500.0,0.00017973,2]
[404543542,1770270643578,-500.0,0.00017973,2]
[404543543,1770270643587,-500.0,0.00017973,2]
[404543544,1770270643597,-500.0,0.00017973,2]
[404543545,1770270643608,-309.44398841,0.00017973,2]
[404543547,1770270643618,-500.0,0.00017973,2]
[404543549,1770270643627,-500.0,0.00017973,2]
[404543552,1770270643636,-500.0,0.00017973,2]
[404543554,1770270643646,-500.0,0.00017973,2]
[404543558,1770270643655,-500.0,0.00017973,2]
[404543561,1770270643664,-500.0,0.00017973,2]
[404543563,1770270643676,-500.0,0.00017973,2]
[404543564,1770270643684,-500.0,0.00017973,2]
[404543565,1770270643693,-520.97702983,0.00017973,2]
[404543566,1770270643703,-500.0,0.00017973,2]
[404543567,1770270643712,-500.0,0.00017973,2]
[404543568,1770270643721,-500.0,0.00017973,2]
[404543569,1770270643730,-500.0,0.00017973,2]
[404543570,1770270643740,-500.0,0.00017973,2]
[404543571,1770270643749,-500.0,0.00017973,2]
[404543572,1770270643758,-500.0,0.00017973,2]
[404543573,1770270643768,-500.0,0.00017973,2]
[404543574,1770270643779,-500.0,0.00017973,2]
[404543575,1770270643788,-500.0,0.00017973,2]
[404543576,1770270643797,-500.0,0.00017973,2]
[404543577,1770270643806,-500.0,0.00017973,2]
[404543578,1770270643816,-500.0,0.00017973,2]
[404543579,1770270643824,-500.0,0.00017973,2]
[404543580,1770270643833,-500.0,0.00017973,2]
[404543581,1770270643842,-500.0,0.00017973,2]
[404543582,1770270643851,-502.08032841,0.00017973,2]
[404543583,1770270643860,-500.0,0.00017973,2]
[404543584,1770270643869,-262.39107038,0.00017973,2]
[404543585,1770270643878,-500.0,0.00017973,2]
[404543586,1770270643886,-166.57,0.00017975,2]
[404543587,1770270643895,-1000.0,0.00017981,2]
[404543588,1770270643904,-150.0,0.00017987,2]
[404543589,1770270643912,-150.0,0.00017988,2]
[404543590,1770270643921,-168.0,0.00017988,2]
[404543591,1770270643931,-230.94,0.00017996,2]
[404543592,1770270643940,-150.0,0.00017999,2]
[404543593,1770270643949,-252.01216033,0.00017999,2]
[404543594,1770270643958,-1010.8044,0.00017999,2]
[404543595,1770270643968,-8923.0520221,0.00017999,2]
[404543596,1770270643977,-300.0,0.00017999,2]
[404543597,1770270643986,-1015.174596,0.00017999,2]
[404543598,1770270643996,-54875.3908102,0.00017999,2]
[404543599,1770270644004,-519.49,0.00017999,2]
[404543600,1770270644014,-519.49,0.00017999,2]
[404543601,1770270644024,-519.49,0.00017999,2]
[404543602,1770270644033,-519.49,0.00017999,2]
[404543603,1770270644042,-519.53,0.00017999,2]
[404543604,1770270644051,-11765.4465178,0.00017999,2]
[404543605,1770270644060,-2462.2253476,0.00017999,2]
[404543606,1770270644070,-300.0,0.00017999,2]
[404543607,1770270644081,-666.0,0.00017999,2]
[404543608,1770270644091,-300.0,0.00017999,2]
[404543609,1770270644100,-473.9283002,0.00017999,2]
[404543610,1770270644109,-674090.55005783,0.00018,2]
[404543611,1770270644120,-2346679.89192974,0.00018,2]
[404543612,1770270644370,-2500.0,0.00011547,2]
[404543613,1770270644379,-181.7102304,0.00013731,2]
[404543614,1770270644417,-1565.73508417,0.00013731,2]
[404543615,1770270644431,-289.56523372,0.00013731,2]
[404543616,1770270644444,-722.8955016,0.00013731,2]
[404543617,1770270645796,-449.48758394,0.00013731,2]
[404543618,1770270645908,-7554.48005327,0.00013731,2]
[404543620,1770270646196,-1644.75863816,0.00013731,2]
[404543700,1770271831817,-1549.71,0.00011233,2]
[404543701,1770271831827,-250.0,0.0001139,2]
[404543702,1770271831837,-195.0,0.0001139,2]
[404543703,1770271831847,-1000.0,0.00011547,2]
[404543704,1770271831856,-718.0,0.000119,5]
[404543705,1770271831866,-511.36,0.00012014,2]
[404543706,1770271831875,-150.0,0.00012197,2]
[404543707,1770271831888,-1600.0,0.00012197,2]
[404543708,1770271831898,-166.66,0.0001229,2]
[404543709,1770271831907,-5000.0,0.00012356,2]
[404543710,1770271831916,-300.0,0.00012356,2]
[404543711,1770271831926,-250.0,0.00012356,2]
[404543712,1770271831935,-195.0,0.00012356,2]
[404543713,1770271831945,-250.0,0.00012356,2]
[404543714,1770271831955,-1639.65791356,0.00012392,2]
[404543715,1770271831971,-13354.55921324,0.00012392,2]
[404543716,1770271831980,-2029.90494336,0.00012392,2]
[404543717,1770271831990,-188.17333529,0.00012455,2]
[404543718,1770271832001,-2696.35842265,0.00012455,2]
[404543719,1770271832011,-12480.73588782,0.00012455,2]
[404543720,1770271832021,-150.0,0.00012463,2]
[404543721,1770271832031,-158.66,0.00012464,2]
[404543722,1770271832040,-188.82991732,0.00012491,2]
[404543723,1770271832049,-41751.51671268,0.00012492,2]
[404543724,1770271832060,-2151.73759419,0.00012492,2]
[404543725,1770271832071,-1688.52199259,0.00012492,2]
[404543726,1770271832082,-972.66991975,0.00012492,2]
[404543727,1770271832100,-729.51283028,0.00012492,2]
[404543728,1770271832121,-259.39015822,0.00012492,2]
[404543730,1770271832132,-438.3991851,0.00012492,2]
[404543732,1770271832143,-352.59879329,0.00012492,2]
[404543734,1770271832154,-605.71259571,0.00012492,2]
[404543736,1770271832166,-449.66614174,0.00012492,2]
[404543739,1770271832177,-13514.3055483,0.00012492,2]
[404543741,1770271832189,-661.92222895,0.00012492,2]
[404543744,1770271832206,-1178.412092,0.00012492,2]
[404543746,1770271832217,-1581.17296328,0.00012492,2]
[404543768,1770271838049,-1178.6709495,0.00012492,2]
[404543770,1770271838110,-340.7948031,0.00012492,2]
[404543771,1770271838122,-4282.22884414,0.00012492,2]
[404543923,1770271840221,-290.10864422,0.00012492,2]
[404543924,1770271840284,-3427572.65800296,0.00012492,2]
[404543925,1770271840293,-3353.79,0.00012555,2]
[404543926,1770271840303,-158.66,0.00012573,2]
[404543927,1770271840313,-158.66,0.00012682,2]
[404543928,1770271840322,-166.66,0.00012696,2]
[404543929,1770271840331,-158.66,0.00012791,2]
[404543930,1770271840340,-158.66,0.000129,2]
[404543931,1770271840350,-9294.41581834,0.000129,2]
[404543932,1770271840359,-24528.11039662,0.000129,2]
[404543933,1770271840369,-43270.49414945,0.000129,2]
[404543934,1770271840378,-269.92100004,0.00012949,2]
[404543935,1770271840387,-150.0,0.00012949,2]
[404543936,1770271840396,-11876.68,0.00012958,2]
[404543937,1770271840405,-150.0,0.00013004,2]
[404543938,1770271840414,-14994.21712671,0.00013004,2]
[404543939,1770271840426,-273.38131323,0.00013059,2]
[404543940,1770271840435,-12480.73588774,0.0001306,2]
[404543941,1770271840444,-166.66,0.00013102,2]
[404543942,1770271840456,-4123.3752,0.00013123,2]
[404543943,1770271840465,-500.0,0.0001316,3]
[404543944,1770271840475,-5326.57,0.0001316,2]
[404543945,1770271840485,-9999.99,0.0001316,2]
[404543946,1770271840495,-26701.08,0.0001316,2]
[404543947,1770271840504,-499.99,0.0001316,2]
[404543948,1770271840514,-9999.99,0.0001316,2]
[404543949,1770271840524,-9999.99,0.0001316,2]
[404543950,1770271840534,-299.99,0.0001316,2]
[404543951,1770271840544,-150.99,0.0001316,2]
[404543952,1770271840553,-22333.09,0.0001316,2]
[404543953,1770271840562,-150.99,0.0001316,2]
[404543954,1770271840571,-9999.99,0.0001316,2]
[404543955,1770271840580,-999.99,0.0001316,2]
[404543956,1770271840590,-6655.19,0.0001316,2]
[404543957,1770271840599,-1610.11,0.0001316,2]
[404543958,1770271840608,-4999.99,0.0001316,2]
[404543959,1770271840617,-19655.0,0.00013183,2]
[404543960,1770271840627,-500.0,0.00013215,2]
[404543961,1770271840635,-200.0,0.00013215,2]
[404543962,1770271840645,-200.0,0.00013215,2]
[404543963,1770271840654,-578.22842639,0.00013215,2]
[404543964,1770271840664,-151.0,0.00013215,2]
[404543965,1770271840673,-500.0,0.00013215,2]
[404543966,1770271840681,-151.0,0.00013215,2]
[404543967,1770271840691,-500.0,0.00013215,2]
[404543968,1770271840699,-500.0,0.00013215,2]
[404543969,1770271840710,-151.0,0.00013215,2]
[404543970,1770271840718,-151.0,0.00013215,2]
[404543971,1770271840728,-151.0,0.00013215,2]
[404543972,1770271840736,-500.0,0.00013215,2]
[404543973,1770271840745,-500.0,0.00013215,2]
[404543974,1770271840754,-500.0,0.00013215,2]
[404543975,1770271840764,-500.0,0.00013215,2]
[404543976,1770271840773,-151.0,0.00013215,2]
[404543977,1770271840782,-500.0,0.00013215,2]
[404543978,1770271840791,-500.0,0.00013215,2]
[404543979,1770271840800,-151.0,0.00013215,2]
[404543980,1770271840810,-500.0,0.00013215,2]
[404543981,1770271840819,-151.0,0.00013215,2]
[404543982,1770271840828,-500.0,0.00013215,2]
[404543983,1770271840837,-151.0,0.00013215,2]
[404543984,1770271840846,-151.0,0.00013215,2]
[404543986,1770271840855,-151.0,0.00013215,2]
[404543987,1770271840865,-2696.35842262,0.00013233,2]
[404543988,1770271840875,-538.29,0.000135,5]
[404543989,1770271840884,-166.66,0.00013507,2]
[404543990,1770271840894,-255.0,0.00013559,2]
[404543991,1770271840903,-14994.21712671,0.00013616,2]
[404543992,1770271840913,-12480.73588774,0.00013665,2]
[404543993,1770271840922,-500.0,0.00013698,2]
[404543994,1770271840931,-500.0,0.00013698,2]
[404543995,1770271840940,-457.99797698,0.00013698,2]
[404543996,1770271840950,-519.49,0.00013698,2]
[404543997,1770271840965,-519.49,0.00013698,2]
[404543998,1770271840974,-519.49,0.00013698,2]
[404543999,1770271840983,-519.49,0.00013698,2]
[404544000,1770271840993,-519.49,0.00013698,2]
[404544001,1770271841003,-519.49,0.00013698,2]
[404544002,1770271841013,-519.49,0.00013698,2]
[404544003,1770271841022,-519.49,0.00013698,2]
[404544004,1770271841033,-519.49,0.00013698,2]
[404544005,1770271841043,-519.49,0.00013698,2]
[404544006,1770271841052,-519.49,0.00013698,2]
[404544007,1770271841061,-519.49,0.00013698,2]
[404544008,1770271841070,-519.49,0.00013698,2]
[404544009,1770271841079,-519.49,0.00013698,2]
[404544010,1770271841088,-519.49,0.00013698,2]
[404544011,1770271841097,-519.49,0.00013698,2]
[404544012,1770271841106,-500.0,0.00013698,2]
[404544013,1770271841116,-500.0,0.00013698,2]
[404544014,1770271841125,-500.0,0.00013698,2]
[404544015,1770271841135,-500.0,0.00013698,2]
[404544016,1770271841144,-500.0,0.00013698,2]
[404544017,1770271841154,-500.0,0.00013698,2]
[404544018,1770271841164,-500.0,0.00013698,2]
[404544019,1770271841173,-418.4948437,0.00013698,2]
[404544020,1770271841183,-500.0,0.00013698,2]
[404544021,1770271841192,-500.0,0.00013698,2]
[404544022,1770271841201,-500.0,0.00013698,2]
[404544024,1770271841211,-500.0,0.00013698,2]
[404544025,1770271841221,-519.87500599,0.00013698,2]
[404544026,1770271841230,-500.0,0.00013698,2]
[404544027,1770271841240,-500.0,0.00013698,2]
[404544028,1770271841249,-500.0,0.00013698,2]
[404544029,1770271841259,-160.87387984,0.00013698,2]
[404544030,1770271841269,-500.0,0.00013698,2]
[404544031,1770271841279,-500.0,0.00013698,2]
[404544032,1770271841288,-500.0,0.00013698,2]
[404544033,1770271841297,-500.0,0.00013698,2]
[404544034,1770271841306,-500.0,0.00013698,2]
[404544035,1770271841316,-500.0,0.00013698,2]
[404544036,1770271841326,-500.0,0.00013698,2]
[404544037,1770271841335,-500.0,0.00013698,2]
[404544038,1770271841344,-350.20210057,0.00013698,2]
[404544039,1770271841354,-500.0,0.00013698,2]
[404544040,1770271841363,-500.0,0.00013698,2]
[404544041,1770271841372,-500.0,0.00013698,2]
[404544042,1770271841382,-500.0,0.00013698,2]
[404544043,1770271841392,-500.0,0.00013698,2]
[404544044,1770271841401,-590.10761957,0.00013698,2]
[404544045,1770271841411,-500.0,0.00013698,2]
[404544046,1770271841420,-507.70655637,0.00013698,2]
[404544047,1770271841429,-500.0,0.00013698,2]
[404544048,1770271841439,-500.0,0.00013698,2]
[404544049,1770271841448,-288.02611632,0.00013698,2]
[404544050,1770271841458,-500.0,0.00013698,2]
[404544051,1770271841467,-500.0,0.00013698,2]
[404544052,1770271841476,-500.0,0.00013698,2]
[404544053,1770271841486,-500.0,0.00013698,2]
[404544054,1770271841495,-500.0,0.00013698,2]
[404544055,1770271841504,-500.0,0.00013698,2]
[404544056,1770271841514,-500.0,0.00013698,2]
[404544057,1770271841523,-500.0,0.00013698,2]
[404544058,1770271841533,-500.0,0.00013698,2]
[404544059,1770271841543,-500.0,0.00013698,2]
[404544060,1770271841552,-500.0,0.00013698,2]
[404544061,1770271841561,-500.0,0.00013698,2]
[404544062,1770271841570,-500.0,0.00013698,2]
[404544063,1770271841580,-500.0,0.00013698,2]
[404544064,1770271841589,-500.0,0.00013698,2]
[404544065,1770271841598,-500.0,0.00013698,2]
[404544066,1770271841607,-500.0,0.00013698,2]
[404544067,1770271841616,-198.00308747,0.00013698,2]
[404544068,1770271841630,-500.0,0.00013698,2]
[404544069,1770271841639,-500.0,0.00013698,2]
[404544070,1770271841649,-500.0,0.00013698,2]
[404544071,1770271841658,-405.3888533,0.00013698,2]
[404544072,1770271841667,-500.0,0.00013698,2]
[404544073,1770271841676,-500.0,0.00013698,2]
[404544074,1770271841686,-447.07793737,0.00013698,2]
[404544075,1770271841695,-711.92,0.00013699,2]
[404544076,1770271841705,-1600.0,0.00013722,2]
[404544077,1770271841714,-185.0,0.00013731,3]
[404544078,1770271841722,-152.0,0.00013731,3]
[404544079,1770271841731,-156.0,0.00013731,3]
[404544080,1770271841740,-500.0,0.00013763,2]
[404544081,1770271841749,-200.0,0.00013763,2]
[404544082,1770271841758,-200.0,0.00013763,2]
[404544083,1770271841767,-247.97,0.00013868,2]
[404544084,1770271841776,-166.66,0.00013913,2]
[404544085,1770271841786,-2029.90494336,0.00013983,2]
[404544086,1770271841795,-2696.35842262,0.00014011,2]
[404544087,1770271841804,-14994.21712671,0.00014228,2]
[404544088,1770271841814,-230.94,0.00014239,2]
[404544089,1770271841823,-12480.73588774,0.0001427,2]
[404544090,1770271841832,-500.0,0.00014311,2]
[404544091,1770271841841,-200.0,0.00014311,2]
[404544092,1770271841851,-200.0,0.00014311,2]
[404544093,1770271841861,-166.66,0.00014319,2]
[404544094,1770271841871,-2500.0,0.00014325,2]
[404544095,1770271841881,-500.0,0.000146,2]
[404544096,1770271841891,-500.0,0.000146,2]
[404544097,1770271841900,-500.0,0.000146,2]
[404544098,1770271841910,-495.76472611,0.000146,2]
[404544099,1770271841920,-500.0,0.000146,2]
[404544100,1770271841930,-500.0,0.000146,2]
[404544101,1770271841939,-151.0,0.00014634,2]
[404544102,1770271841949,-151.0,0.00014634,2]
[404544103,1770271841961,-247.97,0.00014639,2]
[404544104,1770271841973,-152.0,0.00014714,3]
[404544105,1770271841983,-433.0,0.00014756,2]
[404544106,1770271841993,-2696.35842262,0.00014789,2]
[404544107,1770271842002,-14994.21712671,0.0001484,2]
[404544108,1770271842012,-500.0,0.00014859,2]
[404544109,1770271842021,-233.22924952,0.00014859,2]
[404544110,1770271842031,-12480.73588774,0.00014875,2]
[404544111,1770271842043,-250.0,0.00015,2]
[404544112,1770271842052,-152.62,0.00015,2]
[404544113,1770271842062,-450.32,0.00015068,2]
[404544114,1770271842071,-1000.0,0.00015148,2]
[404544115,1770271842081,-500.0,0.00015148,2]
[404544116,1770271842091,-1000.0,0.00015148,2]
[404544117,1770271842101,-500.0,0.00015148,2]
[404544118,1770271842110,-1600.0,0.00015246,2]
[404544119,1770271842120,-500.0,0.00015407,2]
[404544120,1770271842129,-247.97,0.00015409,2]
[404544121,1770271842138,-14994.21712671,0.00015452,2]
[404544122,1770271842148,-12480.73588774,0.0001548,2]
[404544123,1770271842157,-2696.35842262,0.00015566,2]
[404544124,1770271842167,-500.0,0.00015615,2]
[404544125,1770271842176,-152.0,0.00015617,3]
[404544126,1770271842185,-1500.0,0.00015696,2]
[404544127,1770271842195,-1504.24108191,0.00015696,2]
[404544128,1770271842207,-152.05768541,0.00015948,2]
[404544129,1770271842216,-152.0,0.00015955,4]
[404544130,1770271842226,-287.0,0.00016052,2]
[404544131,1770271842235,-14994.21712671,0.00016064,2]
[404544132,1770271842245,-12480.73588774,0.00016085,2]
[404544133,1770271842254,-160.0,0.00016139,2]
[404544134,1770271842263,-247.97,0.0001618,2]
[404544135,1770271842273,-500.0,0.00016223,2]
[404544136,1770271842282,-1232.94,0.00016242,2]
[404544137,1770271842292,-277.537,0.00016243,2]
[404544138,1770271842301,-229.28,0.00016243,2]
[404544139,1770271842310,-179.178,0.00016243,2]
[404544140,1770271842319,-158.945,0.00016243,2]
[404544141,1770271842328,-250.0,0.00016243,2]
[404544142,1770271842337,-191.693,0.00016243,2]
[404544143,1770271842346,-164.442,0.00016243,2]
[404544144,1770271842356,-212.815,0.00016243,2]
[404544145,1770271842365,-250.0,0.00016243,2]
[404544146,1770271842374,-171.0,0.00016243,2]
[404544147,1770271842384,-232.419,0.00016243,2]
[404544148,1770271842393,-3491.028,0.00016243,2]
[404544149,1770271842402,-1411.0,0.00016243,2]
[404544150,1770271842594,-1335.0,0.00016243,2]
[404544151,1770271842604,-616.445,0.00016243,2]
[404544152,1770271842613,-150.0,0.00016243,2]
[404544153,1770271842622,-1271.0,0.00016243,2]
[404544154,1770271842631,-917.0,0.00016243,2]
[404544155,1770271842640,-1205.0,0.00016243,2]
[404544156,1770271842649,-3254.0,0.00016243,2]
[404544157,1770271842658,-568.607,0.00016243,2]
[404544158,1770271842667,-1317.0,0.00016243,2]
[404544159,1770271842677,-1291.24412758,0.00016244,2]
[404544160,1770271842686,-2696.35842262,0.00016344,2]
[404544161,1770271842695,-519.49,0.00016398,2]
[404544162,1770271842703,-450.32,0.00016438,2]
[404544163,1770271842714,-152.05768541,0.00016562,2]
[404544165,1770271842723,-14994.21712671,0.00016676,2]
[404544166,1770271842733,-12480.73588774,0.0001669,2]
[404544167,1770271842742,-165.83,0.00016712,2]
[404544168,1770271842751,-1600.0,0.00016771,2]
[404544169,1770271842760,-370.0,0.0001678,2]
[404544170,1770271842769,-247.97,0.0001695,2]
[404544171,1770271842779,-300.0,0.00017,2]
[404544172,1770271842788,-156.0,0.00017083,3]
[404544173,1770271842798,-2000.0,0.00017099,2]
[404544174,1770271842807,-2000.0,0.00017099,2]
[404544175,1770271842816,-2000.0,0.00017099,2]
[404544176,1770271842826,-2000.0,0.00017099,2]
[404544177,1770271842835,-578.20924308,0.00017099,2]
[404544178,1770271842846,-216.07161542,0.00017099,2]
[404544179,1770271842856,-2000.0,0.00017099,2]
[404544180,1770271842865,-1449.10348087,0.00017099,2]
[404544181,1770271842875,-2000.0,0.00017099,2]
[404544182,1770271842885,-2000.0,0.00017099,2]
[404544183,1770271842895,-2000.0,0.00017099,2]
[404544184,1770271842904,-2000.0,0.00017099,2]
[404544185,1770271842914,-2000.0,0.00017099,2]
[404544186,1770271842923,-743.50770149,0.00017099,2]
[404544187,1770271842932,-2000.0,0.00017099,2]
[404544188,1770271842942,-1508.30623238,0.00017099,2]
[404544189,1770271842951,-174.61919141,0.00017099,2]
[404544190,1770271842968,-322.6107,0.00017099,2]
[404544191,1770271842978,-209.40437684,0.00017099,2]
[404544192,1770271842987,-2696.35842262,0.00017122,2]
[404544193,1770271842998,-200.0,0.00017147,2]
[404544194,1770271843008,-217.15233878,0.00017154,2]
[404544195,1770271843017,-200.0,0.00017162,2]
[404544196,1770271843027,-2029.90494336,0.00017165,2]
[404544197,1770271843036,-426.0,0.00017175,2]
[404544198,1770271843048,-152.05768541,0.00017175,2]
[404544199,1770271843057,-152.0,0.00017196,5]
[404544200,1770271843067,-225.18697532,0.00017209,2]
[404544201,1770271843075,-426.0,0.00017235,2]
[404544202,1770271843085,-370.0,0.00017245,2]
[404544203,1770271843098,-1000.0,0.0001726,2]
[404544204,1770271843107,-233.51889341,0.00017264,2]
[404544205,1770271843116,-200.0,0.00017272,2]
[404544206,1770271843126,-14994.21712671,0.00017288,2]